fUSD/lending_fUSD_20260526
["ID","MTS","AMOUNT","RATE_DAILY","PERIOD"]
[423059060,1779807034000,-175.0,0.00030583,30]
[423059033,1779807034000,-500.0,0.00029863,2]
[423059049,1779807034000,-166.33844984,0.0003036,7]
[423059036,1779807034000,-500.0,0.00029863,2]
[423059013,1779807034000,-500.0,0.00029863,2]
[423059031,1779807034000,-597.08261156,0.00029863,2]
[423059061,1779807034000,-151.0,0.00030583,30]
[423059007,1779807034000,-500.0,0.00029863,2]
[423059008,1779807034000,-500.0,0.00029863,2]
[423059012,1779807034000,-500.0,0.00029863,2]
[423059009,1779807034000,-500.0,0.00029863,2]
[423059011,1779807034000,-500.0,0.00029863,2]
[423059010,1779807034000,-500.0,0.00029863,2]
[423059014,1779807034000,-500.0,0.00029863,2]
[423059017,1779807034000,-500.0,0.00029863,2]
[423059015,1779807034000,-500.0,0.00029863,2]
[423059018,1779807034000,-500.0,0.00029863,2]
[423059016,1779807034000,-586.41054497,0.00029863,2]
[423059020,1779807034000,-500.0,0.00029863,2]
[423059019,1779807034000,-500.0,0.00029863,2]
[423059021,1779807034000,-500.0,0.00029863,2]
[423059022,1779807034000,-500.0,0.00029863,2]
[423059024,1779807034000,-500.0,0.00029863,2]
[423059023,1779807034000,-500.0,0.00029863,2]
[423059026,1779807034000,-500.0,0.00029863,2]
[423059025,1779807034000,-500.0,0.00029863,2]
[423059027,1779807034000,-500.0,0.00029863,2]
[423059028,1779807034000,-500.0,0.00029863,2]
[423059029,1779807034000,-500.0,0.00029863,2]
[423059030,1779807034000,-500.0,0.00029863,2]
[423059032,1779807034000,-500.0,0.00029863,2]
[423059034,1779807034000,-500.0,0.00029863,2]
[423059063,1779807034000,-157.0,0.00030583,30]
[423059087,1779807034000,-152.0,0.00031583,30]
[423059065,1779807034000,-257.0,0.00030583,30]
[423059095,1779807034000,-150.0,0.00031858,2]
[423059097,1779807034000,-800.0,0.00032,120]
[423059091,1779807034000,-190.86,0.00031699,120]
[423059098,1779807034000,-188.30999285,0.00032,120]
[423059100,1779807034000,-160.71850079,0.00032,120]
[423059099,1779807034000,-207.07264915,0.00032,120]
[423059103,1779807034000,-297.1,0.0003221,5]
[423059101,1779807034000,-3839.162,0.00032116,31]
[423059105,1779807034000,-6058.22186503,0.00032483,2]
[423059104,1779807034000,-1106.65171023,0.00032471,2]
[423059106,1779807034000,-500.0,0.00032546,2]
[423059108,1779807034000,-15.67396058,0.00032553,14]
[423059110,1779807034000,-500.0,0.00032556,120]
[423059107,1779807034000,-147.71685642,0.00032553,14]
[423059109,1779807034000,-501.71943586,0.00032556,120]
[423059112,1779807034000,-262.97530967,0.00032556,120]
[423059111,1779807034000,-237.02469033,0.00032556,120]
[423059114,1779807034000,-91.53302296,0.00032556,30]
[423059113,1779807034000,-408.46697704,0.00032556,30]
[423059116,1779807034000,-22.85483112,0.00032556,7]
[423059118,1779807034000,-500.0,0.00032556,7]
[423059117,1779807034000,-477.14516888,0.00032556,7]
[423059119,1779807034000,-2905.20483111,0.00032557,2]
[423059115,1779807034000,-500.0,0.00032556,30]
[423059064,1779807034000,-152.0,0.00030583,30]
[423059093,1779807034000,-1000.0,0.0003184,9]
[423059094,1779807034000,-885.52227417,0.00031841,14]
[423059102,1779807034000,-167.321,0.00032116,31]
[423059092,1779807034000,-500.0,0.00031739,9]
[423059062,1779807034000,-151.0,0.00030583,30]
[423059068,1779807034000,-225.68195747,0.00030947,7]
[423059066,1779807034000,-500.0,0.00030907,8]
[423059067,1779807034000,-238.2460476,0.00030947,7]
[423059096,1779807034000,-166.24505427,0.00032,120]
[423059070,1779807034000,-180.96308781,0.00030947,2]
[423059069,1779807034000,-332.67689968,0.00030947,7]
[423059071,1779807034000,-1000.0,0.00030995,8]
[423059074,1779807034000,-500.0,0.00031381,2]
[423059073,1779807034000,-1395.24,0.00031333,2]
[423059075,1779807034000,-1147.72,0.00031426,2]
[423059076,1779807034000,-159.0,0.00031583,30]
[423059077,1779807034000,-228.0,0.00031583,30]
[423059072,1779807034000,-495.93,0.00031323,3]
[423059079,1779807034000,-155.0,0.00031583,30]
[423059083,1779807034000,-175.0,0.00031583,30]
[423059081,1779807034000,-158.0,0.00031583,30]
[423059082,1779807034000,-157.0,0.00031583,30]
[423059089,1779807034000,-1834.59060515,0.00031613,2]
[423059084,1779807034000,-151.0,0.00031583,30]
[423059080,1779807034000,-579.0,0.00031583,30]
[423059085,1779807034000,-151.0,0.00031583,30]
[423059120,1779807034000,-3639.24120005,0.00032557,2]
[423059086,1779807034000,-157.0,0.00031583,30]
[423059088,1779807034000,-257.0,0.00031583,30]
[423059090,1779807034000,-284.58,0.0003166,120]
[423059078,1779807034000,-158.0,0.00031583,30]
[423059122,1779807038000,-1939.06989098,0.00032547,10]
[423059125,1779807038000,-3556.59982301,0.00032557,2]
[423059123,1779807038000,-2435.11010902,0.00032547,10]
[423059127,1779807038000,-496.86679553,0.00032557,2]
[423059126,1779807038000,-25548.38353755,0.00032557,2]
[423059124,1779807038000,-151588.04178274,0.00032557,2]
[423059142,1779807040000,-6584.0,0.00032557,2]
[423059141,1779807040000,-15029.0798,0.00032557,2]
[423059140,1779807040000,-15289.0,0.00032557,2]
[423059139,1779807040000,-80135.295823,0.00032557,2]
[423059138,1779807040000,-633.31048934,0.00032557,2]
[423059143,1779807041000,-1732.78621704,0.00032557,2]
[423059145,1779807041000,-6478.86472451,0.00032557,2]
[423059144,1779807041000,-400.765,0.00032557,2]
[423059161,1779807043000,-33851.39247277,0.00032557,2]
[423059156,1779807043000,-2211.99200442,0.00029863,2]
[423059158,1779807043000,-503.436893,0.00032557,2]
[423059157,1779807043000,-985.89743691,0.00032557,2]
[423059159,1779807043000,-629.83557,0.00032557,2]
[423059160,1779807043000,-282.70010344,0.00032557,2]
[423059165,1779807043000,-158.0,0.00032583,30]
[423059164,1779807043000,-228.0,0.00032583,30]
[423059166,1779807043000,-155.0,0.00032583,30]
[423059167,1779807043000,-579.0,0.00032583,30]
[423059163,1779807043000,-159.0,0.00032583,30]
[423059162,1779807043000,-500.0,0.00032571,9]
[423059168,1779807043000,-158.0,0.00032583,30]
[423059214,1779807044000,-1834.59060515,0.00033743,2]
[423059213,1779807044000,-257.0,0.00033583,30]
[423059210,1779807044000,-151.0,0.00033583,30]
[423059209,1779807044000,-151.0,0.00033583,30]
[423059208,1779807044000,-175.0,0.00033583,30]
[423059207,1779807044000,-157.0,0.00033583,30]
[423059206,1779807044000,-158.0,0.00033583,30]
[423059212,1779807044000,-152.0,0.00033583,30]
[423059205,1779807044000,-579.0,0.00033583,30]
[423059204,1779807044000,-155.0,0.00033583,30]
[423059202,1779807044000,-228.0,0.00033583,30]
[423059211,1779807044000,-157.0,0.00033583,30]
[423059215,1779807044000,-166.24505427,0.000339,120]
[423059217,1779807044000,-188.30999285,0.000339,120]
[423059203,1779807044000,-158.0,0.00033583,30]
[423059219,1779807044000,-160.71850079,0.000339,120]
[423059221,1779807044000,-1355.0,0.00033997,2]
[423059223,1779807044000,-305.435,0.00033997,2]
[423059218,1779807044000,-207.07264915,0.000339,120]
[423059222,1779807044000,-2418.257,0.00033997,2]
[423059220,1779807044000,-6058.22186501,0.00033947,2]
[423059225,1779807044000,-933.499,0.00033997,2]
[423059227,1779807044000,-297.1,0.00034182,7]
[423059224,1779807044000,-1225.0,0.00033997,2]
[423059226,1779807044000,-6062.0,0.00033997,2]
[423059228,1779807044000,-2735.48466699,0.00034189,102]
[423059229,1779807044000,-500.0,0.00034235,11]
[423059216,1779807044000,-800.0,0.000339,120]
[423059201,1779807044000,-159.0,0.00033583,30]
[423059199,1779807044000,-1106.65171017,0.00033414,2]
[423059196,1779807044000,-171.41,0.00033403,2]
[423059233,1779807044000,-159.0,0.00034583,30]
[423059171,1779807044000,-151.0,0.00032583,30]
[423059170,1779807044000,-175.0,0.00032583,30]
[423059173,1779807044000,-157.0,0.00032583,30]
[423059169,1779807044000,-157.0,0.00032583,30]
[423059172,1779807044000,-151.0,0.00032583,30]
[423059174,1779807044000,-152.0,0.00032583,30]
[423059176,1779807044000,-215.42269777,0.000326,30]
[423059177,1779807044000,-940.35066692,0.00032637,86]
[423059175,1779807044000,-257.0,0.00032583,30]
[423059178,1779807044000,-1834.59060515,0.00032678,2]
[423059181,1779807044000,-1924.93,0.00032877,30]
[423059179,1779807044000,-500.0,0.00032862,120]
[423059182,1779807044000,-487.0,0.00032928,2]
[423059185,1779807044000,-2000.0,0.00033,7]
[423059187,1779807044000,-800.0,0.00033,120]
[423059184,1779807044000,-665.82,0.00032928,2]
[423059183,1779807044000,-487.0,0.00032928,2]
[423059186,1779807044000,-166.24505427,0.00033,120]
[423059189,1779807044000,-188.30999285,0.00033,120]
[423059191,1779807044000,-160.71850079,0.00033,120]
[423059194,1779807044000,-500.0,0.00033209,120]
[423059193,1779807044000,-1000.0,0.00033014,5]
[423059192,1779807044000,-1000.0,0.00033014,3]
[423059195,1779807044000,-6058.22186501,0.00033215,2]
[423059198,1779807044000,-1837.91766695,0.00033413,93]
[423059197,1779807044000,-500.0,0.00033403,10]
[423059200,1779807044000,-150.0,0.00033451,2]
[423059231,1779807044000,-1106.65171017,0.00034357,2]
[423059190,1779807044000,-207.07264915,0.00033,120]
[423059239,1779807044000,-158.0,0.00034583,30]
[423059270,1779807044000,-344.4170137,0.00035265,2]
[423059271,1779807044000,-527.56699294,0.00035265,2]
[423059268,1779807044000,-300.96252262,0.00035265,2]
[423059272,1779807044000,-865.53028801,0.00035265,2]
[423059273,1779807044000,-950.21744792,0.00035265,2]
[423059275,1779807044000,-1148.70755237,0.00035265,2]
[423059277,1779807044000,-594.73329586,0.00035265,2]
[423059274,1779807044000,-300.09,0.00035265,2]
[423059295,1779807044000,-300.96252262,0.00035265,2]
[423059276,1779807044000,-309.98994128,0.00035265,2]
[423059279,1779807044000,-452.48121198,0.00035265,2]
[423059280,1779807044000,-300.0,0.00035265,2]
[423059283,1779807044000,-300.0,0.00035265,2]
[423059281,1779807044000,-484.71261076,0.00035265,2]
[423059282,1779807044000,-310.24516055,0.00035265,2]
[423059284,1779807044000,-1096.16608281,0.00035265,2]
[423059285,1779807044000,-489.43946653,0.00035265,2]
[423059286,1779807044000,-493.32888988,0.00035265,2]
[423059289,1779807044000,-528.42557,0.00035265,2]
[423059287,1779807044000,-605.24124213,0.00035265,2]
[423059290,1779807044000,-1068.30020172,0.00035265,2]
[423059288,1779807044000,-300.0,0.00035265,2]
[423059291,1779807044000,-894.55274135,0.00035265,2]
[423059292,1779807044000,-726.99445071,0.00035265,2]
[423059293,1779807044000,-302.1844563,0.00035265,2]
[423059294,1779807044000,-300.0,0.00035265,2]
[423059237,1779807044000,-155.0,0.00034583,30]
[423059267,1779807044000,-1395.24,0.00035249,2]
[423059269,1779807044000,-1263.82495173,0.00035265,2]
[423059278,1779807044000,-464.43646992,0.00035265,2]
[423059266,1779807044000,-5000.0,0.00035165,2]
[423059235,1779807044000,-228.0,0.00034583,30]
[423059265,1779807044000,-150.0,0.00035124,2]
[423059236,1779807044000,-158.0,0.00034583,30]
[423059238,1779807044000,-579.0,0.00034583,30]
[423059240,1779807044000,-157.0,0.00034583,30]
[423059243,1779807044000,-151.0,0.00034583,30]
[423059241,1779807044000,-175.0,0.00034583,30]
[423059242,1779807044000,-151.0,0.00034583,30]
[423059245,1779807044000,-152.0,0.00034583,30]
[423059247,1779807044000,-561.0,0.0003465,30]
[423059246,1779807044000,-257.0,0.00034583,30]
[423059248,1779807044000,-6058.22186501,0.00034679,2]
[423059250,1779807044000,-150.0,0.00034964,7]
[423059249,1779807044000,-1834.59060515,0.00034809,2]
[423059244,1779807044000,-157.0,0.00034583,30]
[423059253,1779807044000,-150.0,0.00034964,7]
[423059264,1779807044000,-500.0,0.00035067,12]
[423059251,1779807044000,-150.0,0.00034964,7]
[423059263,1779807044000,-160.71850079,0.00035,120]
[423059261,1779807044000,-800.0,0.00035,120]
[423059260,1779807044000,-166.24505427,0.00035,120]
[423059259,1779807044000,-3112.79931131,0.00034965,111]
[423059255,1779807044000,-150.0,0.00034964,7]
[423059262,1779807044000,-188.30999285,0.00035,120]
[423059252,1779807044000,-150.0,0.00034964,7]
[423059254,1779807044000,-150.67938172,0.00034964,7]
[423059256,1779807044000,-150.0,0.00034964,7]
[423059258,1779807044000,-150.0,0.00034964,7]
[423059257,1779807044000,-150.0,0.00034964,7]
[423059341,1779807045000,-159.0,0.00035583,30]
[423059336,1779807045000,-158.0,0.00035583,30]
[423059337,1779807045000,-163.0,0.00035583,30]
[423059335,1779807045000,-579.0,0.00035583,30]
[423059334,1779807045000,-155.0,0.00035583,30]
[423059333,1779807045000,-228.0,0.00035583,30]
[423059327,1779807045000,-300.0,0.00035265,2]
[423059331,1779807045000,-258.07,0.00035503,2]
[423059330,1779807045000,-6058.22186501,0.00035411,2]
[423059329,1779807045000,-1106.65171017,0.000353,2]
[423059339,1779807045000,-151.0,0.00035583,30]
[423059332,1779807045000,-159.0,0.00035583,30]
[423059340,1779807045000,-151.0,0.00035583,30]
[423059348,1779807045000,-500.0,0.0003573,120]
[423059342,1779807045000,-152.0,0.00035583,30]
[423059343,1779807045000,-257.0,0.00035583,30]
[423059346,1779807045000,-1000.0,0.00035669,80]
[423059344,1779807045000,-303.14032409,0.00035616,7]
[423059347,1779807045000,-500.0,0.0003573,120]
[423059345,1779807045000,-151.57016205,0.00035616,7]
[423059349,1779807045000,-3633.05166703,0.0003574,118]
[423059354,1779807045000,-500.0,0.00035893,2]
[423059352,1779807045000,-150.5,0.00035837,2]
[423059353,1779807045000,-1834.59060515,0.00035874,2]
[423059350,1779807045000,-789.0,0.00035758,5]
[423059351,1779807045000,-169.4,0.00035772,3]
[423059328,1779807045000,-300.96252262,0.00035265,2]
[423059338,1779807045000,-175.0,0.00035583,30]
[423059325,1779807045000,-726.99445071,0.00035265,2]
[423059296,1779807045000,-1263.82495173,0.00035265,2]
[423059326,1779807045000,-302.1844563,0.00035265,2]
[423059355,1779807045000,-500.0,0.00035899,13]
[423059297,1779807045000,-344.4170137,0.00035265,2]
[423059298,1779807045000,-527.56699294,0.00035265,2]
[423059300,1779807045000,-950.21744792,0.00035265,2]
[423059299,1779807045000,-865.53028801,0.00035265,2]
[423059301,1779807045000,-300.09,0.00035265,2]
[423059303,1779807045000,-309.98994128,0.00035265,2]
[423059302,1779807045000,-1148.70755237,0.00035265,2]
[423059304,1779807045000,-594.73329586,0.00035265,2]
[423059306,1779807045000,-464.43646992,0.00035265,2]
[423059305,1779807045000,-300.0,0.00035265,2]
[423059307,1779807045000,-300.0,0.00035265,2]
[423059308,1779807045000,-452.48121198,0.00035265,2]
[423059324,1779807045000,-894.55274135,0.00035265,2]
[423059309,1779807045000,-300.0,0.00035265,2]
[423059310,1779807045000,-300.0,0.00035265,2]
[423059312,1779807045000,-484.71261076,0.00035265,2]
[423059313,1779807045000,-310.24516055,0.00035265,2]
[423059314,1779807045000,-300.0,0.00035265,2]
[423059315,1779807045000,-1096.16608281,0.00035265,2]
[423059317,1779807045000,-300.0,0.00035265,2]
[423059316,1779807045000,-489.43946653,0.00035265,2]
[423059318,1779807045000,-493.32888988,0.00035265,2]
[423059321,1779807045000,-300.0,0.00035265,2]
[423059320,1779807045000,-300.0,0.00035265,2]
[423059319,1779807045000,-605.24124213,0.00035265,2]
[423059323,1779807045000,-1068.30020172,0.00035265,2]
[423059322,1779807045000,-528.42557,0.00035265,2]
[423059311,1779807045000,-300.0,0.00035265,2]
[423059356,1779807045000,-300.0,0.000359,13]
[423059365,1779807045000,-297.1,0.00036153,30]
[423059358,1779807045000,-800.0,0.00036,120]
[423059391,1779807045000,-158.820865,0.00036986,7]
[423059394,1779807045000,-151.0,0.00036986,7]
[423059393,1779807045000,-158.820865,0.00036986,7]
[423059392,1779807045000,-158.820865,0.00036986,7]
[423059396,1779807045000,-151.0,0.00036986,7]
[423059400,1779807045000,-931.0,0.00036997,2]
[423059397,1779807045000,-2555.843842,0.00036986,7]
[423059399,1779807045000,-1225.0,0.00036997,2]
[423059398,1779807045000,-1355.0,0.00036997,2]
[423059401,1779807045000,-6062.0,0.00036997,2]
[423059402,1779807045000,-1000.0,0.00037086,38]
[423059404,1779807045000,-500.0,0.00037191,120]
[423059403,1779807045000,-1106.65171017,0.00037185,2]
[423059395,1779807045000,-233.540623,0.00036986,7]
[423059405,1779807045000,-500.0,0.00037191,30]
[423059406,1779807045000,-4269.34633833,0.00037292,120]
[423059407,1779807045000,-315.0,0.000373,2]
[423059410,1779807045000,-500.0,0.00037576,120]
[423059409,1779807045000,-500.0,0.00037564,15]
[423059360,1779807045000,-284.58,0.00036098,120]
[423059411,1779807045000,-25906.0,0.000376,30]
[423059412,1779807045000,-6058.22186501,0.00037607,2]
[423059413,1779807045000,-200.0,0.0003771,30]
[423059414,1779807045000,-1395.70994974,0.0003783,2]
[423059416,1779807045000,-1000.0,0.00037839,86]
[423059417,1779807045000,-2000.0,0.0003789,30]
[423059419,1779807045000,-500.0,0.00037928,43]
[423059418,1779807045000,-500.0,0.00037928,43]
[423059408,1779807045000,-500.0,0.00037412,2]
[423059390,1779807045000,-158.820865,0.00036986,7]
[423059415,1779807045000,-500.0,0.0003783,120]
[423059389,1779807045000,-240.022546,0.00036986,7]
[423059386,1779807045000,-240.022546,0.00036986,7]
[423059357,1779807045000,-166.24505427,0.00036,120]
[423059359,1779807045000,-188.30999285,0.00036,120]
[423059361,1779807045000,-200.0,0.000361,30]
[423059364,1779807045000,-6058.22186501,0.00036143,2]
[423059366,1779807045000,-1000.0,0.00036209,110]
[423059363,1779807045000,-500.0,0.00036142,30]
[423059367,1779807045000,-200.0,0.00036222,10]
[423059370,1779807045000,-171.41,0.00036318,2]
[423059369,1779807045000,-168810.4482,0.000363,2]
[423059372,1779807045000,-1244.41046203,0.000364,30]
[423059368,1779807045000,-1106.65171017,0.00036242,2]
[423059371,1779807045000,-6942.01554168,0.000364,30]
[423059373,1779807045000,-17719.57399629,0.000364,30]
[423059362,1779807045000,-500.0,0.00036142,120]
[423059375,1779807045000,-2000.0,0.000367,7]
[423059387,1779807045000,-240.022546,0.00036986,7]
[423059374,1779807045000,-3691.07282475,0.00036516,120]
[423059385,1779807045000,-234.274964,0.00036986,7]
[423059384,1779807045000,-151.0,0.00036986,7]
[423059383,1779807045000,-1834.59060515,0.00036939,2]
[423059379,1779807045000,-500.0,0.00036823,37]
[423059388,1779807045000,-240.022546,0.00036986,7]
[423059382,1779807045000,-200.0,0.0003691,30]
[423059380,1779807045000,-6058.22186501,0.00036875,2]
[423059377,1779807045000,-190.7085,0.00036733,2]
[423059378,1779807045000,-500.0,0.00036823,37]
[423059376,1779807045000,-500.0,0.00036731,14]
[423059381,1779807045000,-150.0,0.0003688,2]
[423059444,1779807046000,-300.0,0.0003851,30]
[423059453,1779807046000,-240.022546,0.0003861,30]
[423059445,1779807046000,-152.0,0.00038598,7]
[423059446,1779807046000,-152.0,0.00038598,7]
[423059443,1779807046000,-1100.0,0.000385,14]
[423059448,1779807046000,-3167.74299693,0.000386,90]
[423059450,1779807046000,-40006.46724358,0.0003861,2]
[423059449,1779807046000,-1400.0,0.000386,14]
[423059451,1779807046000,-151.0,0.0003861,30]
[423059457,1779807046000,-151.0,0.0003861,30]
[423059455,1779807046000,-240.022546,0.0003861,30]
[423059454,1779807046000,-240.022546,0.0003861,30]
[423059456,1779807046000,-151.0,0.0003861,30]
[423059460,1779807046000,-1548.0,0.0003863,30]
[423059459,1779807046000,-2409.03579536,0.00038626,120]
[423059458,1779807046000,-2555.843842,0.0003861,30]
[423059462,1779807046000,-152.0,0.00038652,7]
[423059461,1779807046000,-152.0,0.00038637,30]
[423059442,1779807046000,-700.0,0.000384,14]
[423059452,1779807046000,-240.022546,0.0003861,30]
[423059441,1779807046000,-500.0,0.00038396,16]
[423059425,1779807046000,-190.86,0.00038039,120]
[423059437,1779807046000,-6058.22186501,0.00038339,2]
[423059464,1779807046000,-2110.0,0.00038667,2]
[423059420,1779807046000,-1731.16,0.00038,2]
[423059421,1779807046000,-1482.78,0.00038,2]
[423059422,1779807046000,-540.36190205,0.00038,30]
[423059423,1779807046000,-5999.30682,0.00038,2]
[423059424,1779807046000,-1834.59060515,0.00038005,2]
[423059427,1779807046000,-1731.16,0.000381,2]
[423059426,1779807046000,-4530.61866707,0.00038068,120]
[423059428,1779807046000,-1482.78,0.000381,2]
[423059429,1779807046000,-829.60638659,0.0003812,30]
[423059430,1779807046000,-250.0,0.0003812,30]
[423059433,1779807046000,-1106.65171017,0.00038128,2]
[423059432,1779807046000,-297.1,0.00038125,30]
[423059431,1779807046000,-250.0,0.0003812,30]
[423059434,1779807046000,-439.16161702,0.00038166,10]
[423059436,1779807046000,-237.95,0.00038276,60]
[423059435,1779807046000,-1000.0,0.00038198,44]
[423059438,1779807046000,-164.89019938,0.00038356,2]
[423059439,1779807046000,-1548.0,0.00038356,30]
[423059440,1779807046000,-1000.0,0.00038379,105]
[423059467,1779807046000,-150.0,0.00038724,2]
[423059473,1779807046000,-190.99671992,0.00038771,2]
[423059465,1779807046000,-464.1869,0.000387,120]
[423059491,1779807046000,-500.0,0.0003887,30]
[423059492,1779807046000,-500.0,0.0003887,30]
[423059487,1779807046000,-150.0,0.00038849,7]
[423059493,1779807046000,-500.0,0.0003887,30]
[423059495,1779807046000,-908.39980647,0.00038871,2]
[423059494,1779807046000,-61354.31999208,0.00038871,2]
[423059497,1779807046000,-10446.61331715,0.00038871,2]
[423059496,1779807046000,-974.74442038,0.00038871,2]
[423059499,1779807046000,-3636.0,0.00033997,2]
[423059501,1779807046000,-1263.82495173,0.00035265,2]
[423059502,1779807046000,-2555.843842,0.00036986,7]
[423059500,1779807046000,-300.0,0.00035265,2]
[423059503,1779807046000,-161.06,0.00038548,105]
[423059505,1779807046000,-356.89651874,0.0003861,30]
[423059507,1779807046000,-417.46540143,0.00038871,2]
[423059504,1779807046000,-2198.94732326,0.0003861,30]
[423059506,1779807046000,-153.0972429,0.00038871,2]
[423059508,1779807046000,-36692.19902747,0.00038871,2]
[423059463,1779807046000,-152.0,0.00038652,7]
[423059490,1779807046000,-500.0,0.0003887,30]
[423059489,1779807046000,-552.6029531,0.0003887,120]
[423059498,1779807046000,-504.0,0.00025082,2]
[423059486,1779807046000,-150.0,0.00038849,7]
[423059488,1779807046000,-255.99642587,0.00038861,2]
[423059466,1779807046000,-1800.0,0.000387,14]
[423059469,1779807046000,-1000.0,0.00038744,120]
[423059472,1779807046000,-200.0,0.00038756,6]
[423059470,1779807046000,-1000.0,0.0003875,15]
[423059509,1779807046000,-419.84716647,0.00036997,2]
[423059471,1779807046000,-200.0,0.00038756,6]
[423059475,1779807046000,-25906.0,0.000388,30]
[423059479,1779807046000,-158.820865,0.000388,30]
[423059468,1779807046000,-6840.28095052,0.00038732,15]
[423059477,1779807046000,-158.820865,0.000388,30]
[423059476,1779807046000,-158.820865,0.000388,30]
[423059478,1779807046000,-158.820865,0.000388,30]
[423059481,1779807046000,-12987.85751169,0.00038805,30]
[423059480,1779807046000,-300.0,0.000388,14]
[423059485,1779807046000,-267.0,0.00038844,120]
[423059482,1779807046000,-250.0,0.00038808,30]
[423059483,1779807046000,-250.0,0.00038808,30]
[423059474,1779807046000,-500.0,0.00038799,2]
[423059484,1779807046000,-4847.61985192,0.00038844,120]
[423059559,1779807047000,-250.0,0.00038918,55]
[423059558,1779807047000,-391.0,0.00038913,2]
[423059552,1779807047000,-177.31,0.000389,30]
[423059557,1779807047000,-1548.0,0.00038904,30]
[423059553,1779807047000,-250.39,0.000389,120]
[423059551,1779807047000,-2555.843842,0.00038899,30]
[423059556,1779807047000,-250.0,0.00038904,55]
[423059554,1779807047000,-300.0,0.000389,14]
[423059549,1779807047000,-151.0,0.00038899,30]
[423059561,1779807047000,-250.0,0.0003893,55]
[423059550,1779807047000,-2555.843842,0.00038899,30]
[423059555,1779807047000,-250.0,0.00038904,30]
[423059562,1779807047000,-1100.0,0.00038932,30]
[423059574,1779807047000,-1100.0,0.00038932,30]
[423059563,1779807047000,-1100.0,0.00038932,30]
[423059564,1779807047000,-1100.0,0.00038932,30]
[423059568,1779807047000,-1100.0,0.00038932,30]
[423059567,1779807047000,-1100.0,0.00038932,30]
[423059569,1779807047000,-1100.0,0.00038932,30]
[423059570,1779807047000,-1100.0,0.00038932,30]
[423059566,1779807047000,-1100.0,0.00038932,30]
[423059571,1779807047000,-1100.0,0.00038932,30]
[423059573,1779807047000,-1100.0,0.00038932,30]
[423059575,1779807047000,-1100.0,0.00038932,30]
[423059576,1779807047000,-1100.0,0.00038932,30]
[423059572,1779807047000,-1100.0,0.00038932,30]
[423059545,1779807047000,-158.820865,0.00038899,30]
[423059560,1779807047000,-1000.0,0.00038919,116]
[423059546,1779807047000,-158.820865,0.00038899,30]
[423059527,1779807047000,-151.0,0.00038871,30]
[423059547,1779807047000,-158.820865,0.00038899,30]
[423059510,1779807047000,-3216.15283353,0.00036997,2]
[423059511,1779807047000,-517593.33133372,0.00038871,2]
[423059513,1779807047000,-168552.0075944,0.00038871,2]
[423059512,1779807047000,-1413.3780038,0.00038871,2]
[423059514,1779807047000,-151.0,0.00038871,30]
[423059516,1779807047000,-240.022546,0.00038871,30]
[423059515,1779807047000,-240.022546,0.00038871,30]
[423059517,1779807047000,-240.022546,0.00038871,30]
[423059577,1779807047000,-1100.0,0.00038932,30]
[423059526,1779807047000,-151.0,0.00038871,30]
[423059518,1779807047000,-240.022546,0.00038871,30]
[423059519,1779807047000,-158.820865,0.00038871,30]
[423059520,1779807047000,-158.820865,0.00038871,30]
[423059548,1779807047000,-151.0,0.00038899,30]
[423059524,1779807047000,-158.820865,0.00038871,30]
[423059528,1779807047000,-2064.85052611,0.00038871,30]